Workbook

Sheet Hoja1
B3: Fact | C3: Institucion | D3: Valor de venta | E3: IGV | F3: Monto Total | G3: Tipo Orden | H3: Nº Orden | I3: Estado | J3: Ubicación | K3: Fecha | L3: Cod. Siaf | M3: Fuente
B4: 268 | C4: Municipalidad Distrital de Ate | D4: =F4/1.18 -> 2745.762712 | E4: =D4*0.18 -> 494.2372881 | F4: 3240 | G4: Compra | H4: 99 | I4: Cancelado | K4: 2012-06-13
B5: 269 | C5: Municipalidad Distrital de Ate | D5: =F5/1.18 -> 533.8983051 | E5: =D5*0.18 -> 96.10169492 | F5: 630 | G5: Compra | H5: 808 | I5: Cancelado | K5: 2012-06-13
B6: 270 | I6: Anulada
B7: 271 | I7: Anulada
B8: 272 | C8: Municipalidad Distrital de Santiago de Surco | D8: 7164.40678 | E8: 1289.59322 | F8: 8454 | G8: Compra | H8: 940 | I8: Pendiente | K8: 2012-06-26
B9: 273 | C9: Municipalidad Distrital de Santiago de Surco | D9: 8786.440678 | E9: 1581.559322 | F9: 10368 | G9: Compra | H9: 939 | I9: Pendiente | K9: 2012-06-26
B10: 274 | C10: Municipalidad Distrital de Ate | D10: 7883.983051 | E10: 1419.116949 | F10: 9303.1 | G10: Compra | H10: 1215 | I10: Pendiente | K10: 2012-06-26
B11: 275 | C11: Municipalidad Distrital de Ate | D11: 2177.330508 | E11: 391.9194915 | F11: 2569.25 | G11: compra | H11: 1216 | I11: Pendiente | K11: 2012-06-26
B12: 276 | C12: Municipalidad Distrital de Ate | D12: 6922.118644 | E12: 1245.981356 | F12: 8168.1 | G12: Compra | H12: 1216 | I12: Pendiente | K12: 2012-06-26

Sheet Hoja2
A1: Rivzar
A2: Guia de facturas
A4: Fact Serie | B4: Fact N° | C4: Estado | D4: Dia | E4: Mes | F4: Año | G4: Institucion | H4: Valor de venta | I4: IGV | J4: Monto Total | K4: Tipo Orden | L4: Nº Orden | M4: N° Guia de Remision
A5: 1 | B5: 50 | D5: 20 | E5: Abril | F5: 2011 | G5: Municipalidad Distrital de Ate | H5: =J5/1.18 -> 2288.135593 | I5: =H5*0.18 -> 411.8644068 | J5: 2700 | M5: 43
A6: 1 | B6: 111 | D6: 30 | E6: Setiembre | F6: 2011 | G6: Municipalidad Distrital de Miraflores | H6: =J6/1.18 -> 651.2711864 | I6: =H6*0.18 -> 117.2288136 | J6: 768.5 | K6: Compra | L6: ¿? | M6: ¿?
A7: 1 | B7: 112 | C7: Anulada
A8: 1 | B8: 114 | D8: 11 | E8: Octubre | F8: 2011 | G8: Municipalidad Distrital de Ate | H8: 1423.728814 | I8: 256.2711864 | J8: 1680 | K8: Compra | L8: ¿1328? | M8: 85
A9: 1 | B9: 115 | C9: Anulada
A10: 1 | B10: 116 | D10: 18 | E10: Octubre | F10: 2011 | G10: Municipalidad Distrital de Ate | H10: 3636.440678 | I10: 654.559322 | J10: 4291 | K10: Compra | L10: ¿1301? | M10: 87
A11: 1 | B11: 117 | D11: 19 | E11: Octubre | F11: 2011 | G11: Municipalidad distrital de Ate | H11: 1704.237288 | I11: 306.7627119 | J11: 2011 | K11: Compra | L11: 1422 | M11: 88 - 89
A12: 1 | B12: 118 | D12: 19 | E12: Octubre | F12: 2011 | G12: Municipalidad Distrital de Ate | H12: 6355.932203 | I12: 1144.067797 | J12: 7500 | K12: Compra | L12: 1422 | M12: 90
A13: 1 | B13: 119 | D13: 20 | E13: Octubre | F13: 2011 | G13: Municipalidad Distrital de Ate | H13: 381.3559322 | I13: 68.6440678 | J13: 450 | K13: Compra | L13: 1327 | M13: 91
A14: 1 | B14: 120 | D14: 21 | E14: Octubre | F14: 2011 | G14: Municipalidad Distrital de Ate | H14: 2779.661017 | I14: 500.3389831 | J14: 3280 | K14: Compra | L14: 1379 | M14: 93
A15: 1 | B15: 121 | D15: 21 | E15: Octubre | F15: 2011 | G15: Municipalidad Distrital de Ate | H15: 7026.779661 | I15: 1264.820339 | J15: 8291.6 | K15: Compra | L15: 1132 | M15: 94
A16: 1 | B16: 122 | C16: Anulada
A17: 1 | B17: 123 | C17: Anulada
A18: 1 | B18: 125 | D18: ¿? | E18: ¿? | F18: ¿? | G18: Municipalidad Distrital de Ate | H18: 9025.423729 | I18: 1624.576271 | J18: 10650 | K18: Compra | L18: 1461 | M18: ¿(96) -97?
A19: 1 | B19: 126 | C19: Anulada
A20: 1 | B20: 127
A21: 1 | B21: 128 | D21: 28 | E21: Noviembre | F21: 2011 | G21: Municipalidad Distrital de Ate | H21: 8737.288136 | I21: 1572.711864 | J21: 10310 | K21: Compra | L21: ¿1523? | M21: ¿?
A22: 1 | B22: 129 | D22: 28 | E22: Noviembre | F22: 2011 | G22: Municipalidad Distrital de Ate | H22: 8457.627119 | I22: 1522.372881 | J22: 9980 | K22: Servicio | L22: ¿3759?
A23: 1 | B23: 130 | C23: Anulada
A24: 1 | B24: 131 | D24: 5 | E24: Diciembre | F24: 2011 | G24: Municipalidad Distrital de Ate | H24: 5773.728814 | I24: =H24*0.18 -> 1039.271186 | J24: 6813 | K24: Servicio | L24: 3888
A25: 1 | B25: 132 | D25: 5 | E25: Diciembre | F25: 2011 | G25: Municipalidad Distrital de Ate | H25: 9005.084746 | I25: 1620.915254 | J25: 10626 | K25: Servicio | L25: 3889
A26: 1 | B26: 133 | C26: Anulada
A27: 1 | B27: 134 | C27: Anulada
A28: 1 | B28: 135 | D28: 5 | E28: Diciembre | F28: 2011 | G28: Municipalidad Distrital de Ate | H28: 8898.305085 | I28: 1601.694915 | J28: 10500 | K28: Servicio | L28: 3981
A29: 1 | B29: 136 | D29: 5 | E29: Diciembre | F29: 2011 | G29: Municipalidad Distrital de Ate | H29: 9067.79661 | I29: 1632.20339 | J29: 10700 | K29: Servicio | L29: 3892
A30: 1 | B30: 137 | D30: 5 | E30: Diciembre | F30: 2011 | G30: Municipalidad Distrital de Ate | H30: 8305.084746 | I30: 1494.915254 | J30: 9800 | K30: Servicio | L30: ¿3890?
A31: 1 | B31: 139 | D31: 7 | E31: Diciembre | F31: 2011 | G31: Municipalidad Distrital de Ate | H31: =J31/1.18 -> 6913.983051 | I31: 1244.516949 | J31: 8158.5 | K31: Compra | L31: ¿1577? | M31: ¿?
A32: 1 | B32: 140 | D32: 7 | E32: Diciembre | F32: 2011 | G32: Municipalidad Distrital de Ate | H32: 2700 | I32: 486 | J32: 3186 | K32: Compra | L32: ¿1578? | M32: ¿?
A33: 1 | B33: 141 | D33: 19 | E33: Diciembre | F33: 2011 | G33: Municipalidad Distrital de Ate | H33: 3940.677966 | I33: 709.3220339 | J33: 4650 | K33: Servicio | L33: ¿4241?
A34: 1 | B34: 142 | D34: 19 | E34: Diciembre | F34: 2011 | G34: Municipalidad Distrital de Ate | H34: 7203.389831 | I34: 1296.610169 | J34: 8500 | K34: Servicio | L34: 4251
A35: 1 | B35: 154 | D35: 29 | E35: Diciembre | F35: 2011 | G35: Municipalidad Distrital de Ate | H35: 8580.508475 | I35: 1544.491525 | J35: 10125 | K35: Servicio | L35: 4523
A36: 1 | B36: 156 | D36: 29 | E36: Diciembre | F36: 2011 | G36: Municipalidad Distrital de Ate | H36: 6355.932203 | I36: 1144.067797 | J36: 7500 | K36: Servicio | L36: 4526
A37: 1 | B37: 157 | D37: 29 | E37: Diciembre | F37: 2011 | G37: Municipalidad Distrital de Ate | H37: 5974.576271 | I37: 1075.423729 | J37: 7050 | K37: Servicio | L37: 4524
A38: 1 | B38: 158 | C38: Anulada
A39: 1 | B39: 159 | D39: 29 | E39: Diciembre | F39: 2011 | G39: Municipalidad Distrital de Ate | H39: 2250.847458 | I39: 405.1525424 | J39: 2656 | K39: Compra | L39: 1789 | M39: 105
A40: 1 | B40: 160 | D40: 29 | E40: Diciembre | F40: 2011 | G40: Municipalidad Distrital de Ate | H40: 6406.779661 | I40: 1153.220339 | J40: 7560 | K40: Servicio | L40: 4598
A41: 1 | B41: 161 | D41: 29 | E41: Diciembre | F41: 2011 | G41: Municipalidad Distrital de Ate | H41: 8580.508475 | I41: 1544.491525 | J41: 10125 | K41: Servicio | L41: 4597
A42: 1 | B42: 162 | D42: 29 | E42: Diciembre | F42: 2011 | G42: Municipalidad Distrital de Ate | H42: 8898.305085 | I42: 1601.694915 | J42: 10500 | K42: Servicio | L42: 4541
A43: 1 | B43: 163 | D43: 29 | E43: Diciembre | F43: 2011 | G43: Municipalidad Distrital de Ate | H43: 2796.610169 | I43: 503.3898305 | J43: 3300 | K43: Servicio | L43: 4595
A44: 1 | B44: 164 | D44: 29 | E44: Diciembre | F44: 2011 | G44: Municipalidad Distrital de Ate | H44: 7203.389831 | I44: 1296.610169 | J44: 8500 | K44: Servicio | L44: 4540
A45: 1 | B45: 165 | D45: 29 | E45: Diciembre | F45: 2011 | G45: Municipalidad Distrital de Ate | H45: 6881.355932 | I45: 1238.644068 | J45: 8120 | K45: Servicio | L45: 4596
A46: 1 | B46: 166 | D46: 29 | E46: Diciembre | F46: 2011 | G46: Municipalidad Distrital de Ate | H46: 6644.067797 | I46: 1195.932203 | J46: 7840 | K46: Compra | L46: 1787 | M46: 106
A47: 1 | B47: 167 | D47: 29 | E47: Diciembre | F47: 2011 | G47: Municipalidad distrital de Ate | H47: 7188.135593 | I47: 1293.864407 | J47: 8482 | K47: Servicio | L47: 5439
A48: 1 | B48: 168 | D48: 29 | E48: Diciembre | F48: 2011 | G48: Municipalidad Distrital de Ate | H48: 9067.79661 | I48: 1632.20339 | J48: 10700 | K48: Servicio | L48: 4538
A49: 1 | B49: 169 | D49: 29 | E49: Diciembre | F49: 2011 | G49: Municipalidad Distrital de Ate | H49: 6969.491525 | I49: 1254.508475 | J49: 8224 | K49: Compra | L49: 1793 | M49: 107
A50: 1 | B50: 170 | D50: 29 | E50: Diciembre | F50: 2011 | G50: Municipalidad Distrital de Ate | H50: 4745.762712 | I50: 854.2372881 | J50: 5600 | K50: Servicio | L50: 4626
A51: 1 | B51: 173 | C51: Sin uso
A52: 1 | B52: 174 | C52: Sin uso
A53: 1 | B53: 175 | C53: Sin uso
A54: 1 | B54: 176 | C54: Sin uso
A55: 1 | B55: 177 | C55: Sin uso
A56: 1 | B56: 178 | C56: Sin uso
A57: 1 | B57: 179 | C57: Sin uso
A58: 1 | B58: 180 | C58: Sin uso
A59: 1 | B59: 181 | C59: Sin uso
A60: 1 | B60: 182 | D60: 11 | E60: Enero | F60: 2012 | G60: Municipalidad Distrital de Ate | H60: 786.440678 | I60: 141.559322 | J60: 928 | K60: Compra | L60: ¿? | M60: 110
A61: 1 | B61: 183 | D61: 11 | E61: Enero | F61: 2012 | G61: Municipalidad Distrital de Ate | H61: 7500 | I61: 1350 | J61: 8850 | K61: Servicio | L61: ¿?
A62: 1 | B62: 185 | C62: Pendiente
A63: 1 | B63: 186 | C63: Pendiente
A64: 1 | B64: 187 | C64: Sin uso
A65: 1 | B65: 188 | C65: Sin uso
A66: 1 | B66: 189 | C66: Sin uso
A67: 1 | B67: 190 | C67: Sin uso
A68: 1 | B68: 191 | C68: Anulada
A69: 1 | B69: 193 | C69: Anulada
A70: 1 | B70: 197 | C70: Anulada
A71: 1 | B71: 198 | C71: Anulada
A72: 1 | B72: 200 | D72: 26 | E72: Enero | F72: 2012 | G72: Municipalidad Distrital de Ate | H72: 3744.067797 | I72: =H72*0.18 -> 673.9322034 | J72: 4418 | K72: Compra | L72: ¿? | M72: 116 - 117
A73: 1 | B73: 203 | C73: Revisar | D73: 30 | E73: Enero | F73: 2012 | G73: municipalidad Distrital de Ate | H73: =J73/1.18 -> 2542.372881 | I73: 457.6271186 | J73: 3000 | K73: Compra | M73: 121
A74: 1 | B74: 204 | C74: Revisar | D74: 30 | E74: Enero | F74: 2012 | G74: Municipalidad Distrital de Ate | H74: 203.3898305 | I74: 36.61016949 | J74: 240 | K74: Compra | L74: ¿? | M74: 122
A75: 1 | B75: 205 | C75: Anulada
A76: 1 | B76: 206 | D76: 31 | E76: Enero | F76: 2012 | G76: Oscar Yangali Ingeniera EIRL | H76: 2093.220339 | I76: 376.779661 | J76: 2470 | K76: Servicio | L76: ¿?
A77: 1 | B77: 207 | D77: 31 | E77: Enero | F77: 2012 | G77: Oscar Yangali Ingeniera EIRL | H77: 3078.983051 | I77: 554.2169492 | J77: 3633.2 | K77: Servicio | L77: ¿?
A78: 1 | B78: 208 | C78: Sin uso
A79: 1 | B79: 210 | D79: 2 | E79: Febrero | F79: 2012 | G79: Municipalidad Distrital de Ate | H79: =J79/1.18 -> 4576.271186 | I79: =H79*0.18 -> 823.7288136 | J79: 5400 | K79: Servicio | L79: ¿138?
A80: 1 | B80: 211 | D80: 2 | E80: Febrero | F80: 2012 | G80: Municipalidad Distrital de Ate | H80: =J80/1.18 -> 7662.711864 | I80: =H80*0.18 -> 1379.288136 | J80: 9042 | K80: Servicio | L80: ¿139?
A81: 1 | B81: 213 | D81: 7 | E81: Febrero | F81: 2012 | G81: Municipalidad Distrital de Ate | H81: 7816.271186 | I81: 1406.928814 | J81: 9223.2 | K81: Compra | L81: ¿109? | M81: 126 - 127
A82: 1 | B82: 214 | D82: 10 | E82: Febrero | F82: 2012 | G82: Municipalidad Distrital de Ate | H82: 7627.118644 | I82: 1372.881356 | J82: 9000 | K82: Compra | L82: ¿139? | M82: 129
A83: 1 | B83: 215 | D83: 15 | E83: Febrero | F83: 2012 | G83: Municipalidad Distrital de Ate | H83: 8237.288136 | I83: 1482.711864 | J83: 9720 | K83: Compra | L83: ¿138? | M83: 130
A84: 1 | B84: 216 | D84: 15 | E84: Febrero | F84: 2012 | G84: Municipalidad Distrital de Ate | H84: 2510.338983 | I84: 451.8610169 | J84: 2962.2 | K84: Compra | L84: ¿182? | M84: 131
A85: 1 | B85: 217 | D85: 20 | E85: Febrero | F85: 2012 | G85: Municipalidad distrital de Ate | H85: 9152.542373 | I85: 1647.457627 | J85: 10800 | K85: Compra | L85: ¿95? | M85: 132
A86: 1 | B86: 218 | D86: 21 | E86: Febrero | F86: 2012 | G86: Municipalidad Distrital de Ate | H86: 6406.779661 | I86: 1153.220339 | J86: 7560 | K86: Servicio | L86: 372
A87: 1 | B87: 219 | D87: 21 | E87: Febrero | F87: 2012 | G87: Municipalidad Distrital de Ate | H87: 8271.186441 | I87: 1488.813559 | J87: 9760 | K87: Compra | L87: 226 | M87: 133
A88: 1 | B88: 220 | D88: 21 | E88: Febrero | F88: 2012 | G88: Municipalidad Distrital de Ate | H88: 4067.79661 | I88: 732.2033898 | J88: 4800 | K88: Compra | L88: 227 | M88: 134
A89: 1 | B89: 221 | C89: Anulada
A90: 1 | B90: 222 | D90: 21 | E90: Febrero | F90: 2012 | G90: Municipalidad Distrital de Ate | H90: 5745.762712 | I90: 1034.237288 | J90: 6780 | K90: Compra | L90: 229 | M90: 135
A91: 1 | B91: 223 | D91: 21 | E91: Febrero | F91: 2012 | G91: Municipalidad Distrital de Ate | H91: 3426.271186 | I91: 616.7288136 | J91: 4043 | K91: Compra | L91: 230 | M91: 136
A92: 1 | B92: 224 | D92: 21 | E92: Febrero | F92: 2012 | G92: Municipalidad Distrital de Ate | H92: 922.0338983 | I92: 165.9661017 | J92: 1088 | K92: Servicio | L92: 399
A93: 1 | B93: 225 | D93: 27 | E93: Febrero | F93: 2012 | G93: Municipalidad Distrital de Ate | H93: 1779.661017 | I93: 320.3389831 | J93: 2100 | K93: Compra | L93: 300 | M93: 137
A94: 1 | B94: 226 | D94: 27 | E94: Febrero | F94: 2012 | G94: Municipalidad Distrital de Ate | H94: 4745.762712 | I94: 854.2372881 | J94: 5600 | K94: Compra | L94: 303 | M94: 138
A95: 1 | B95: 227 | D95: 28 | E95: Febrero | F95: 2012 | G95: Municipalidad Distrital de Ate | H95: 9129.661017 | I95: 1643.338983 | J95: 10773 | K95: Servicio | L95: ¿460?
A96: 1 | B96: 228 | D96: 28 | E96: Febrero | F96: 2012 | G96: Municipalidad Distrital de Ate | H96: 3940.677966 | I96: 709.3220339 | J96: 4650 | K96: Servicio | L96: ¿461?
A97: 1 | B97: 229 | D97: 28 | E97: Febrero | F97: 2012 | G97: Municipalidad Distrital de Ate | H97: 7405.084746 | I97: 1332.915254 | J97: 8738 | K97: Servicio | L97: ¿463?
A98: 1 | B98: 230 | D98: 28 | E98: Febrero | F98: 2012 | G98: Municipalidad Distrital de Ate | H98: 1872.881356 | I98: 337.1186441 | J98: 2210 | K98: Servicio | L98: ¿478?
A99: 1 | B99: 232 | D99: 2 | E99: Marzo | F99: 2012 | G99: Municipalidad Distrital de Ate | H99: 1995.762712 | I99: 359.2372881 | J99: 2355 | K99: Servicio | L99: 520
A100: 1 | B100: 233 | D100: 2 | E100: Marzo | F100: 2012 | G100: Municipalidad Distrital de Ate | H100: 9000 | I100: 1620 | J100: 10620 | K100: Compra | L100: 319 | M100: 140
A101: 1 | B101: 234 | D101: 2 | E101: Marzo | F101: 2012 | G101: Municipalidad Distrital de Ate | H101: 3050.847458 | I101: 549.1525424 | J101: 3600 | K101: Servicio | L101: 522
A102: 1 | B102: 235 | D102: 2 | E102: Marzo | F102: 2012 | G102: Municipalidad Distrital de Ate | H102: 3508.474576 | I102: 631.5254237 | J102: 4140 | K102: Servicio | L102: 521
A103: 1 | B103: 236 | C103: Anulada
A104: 1 | B104: 237 | C104: Anulada
A105: 1 | B105: 238 | C105: Anulada
A106: 1 | B106: 239 | C106: Anulada
A107: 1 | B107: 240 | C107: Anulada
A108: 1 | B108: 241 | D108: 6 | E108: Marzo | F108: 2012 | G108: Municipalidad Distrital de Ate | H108: 298.3050847 | I108: 53.69491525 | J108: 352 | K108: Compra | L108: 309 | M108: 146
A109: 1 | B109: 251 | D109: 12 | E109: Marzo | F109: 2012 | G109: Municipalidad Distrital de Ate | H109: 2745.762712 | I109: 494.2372881 | J109: 3240 | K109: Compra | L109: ¿361? | M109: ¿?
A110: 1 | B110: 253 | D110: 14 | E110: Marzo | F110: 2012 | G110: Municipalidad Distrital de Ate | H110: 2161.016949 | I110: 388.9830508 | J110: 2550 | K110: Compra | L110: 322 | M110: 145
A111: 1 | B111: 254 | D111: 26 | E111: Marzo | F111: 2012 | G111: Municipalidad Distrital de Ate | H111: 7457.627119 | I111: 1342.372881 | J111: 8800 | K111: Compra | L111: ¿100? | M111: ¿124?
A112: 1 | B112: 255 | D112: 2 | E112: Abril | F112: 2012 | G112: Municipalidad Distrital de Ate | H112: 813.559322 | I112: 146.440678 | J112: 960 | K112: Compra | L112: ¿362? | M112: ¿?
A113: 1 | B113: 256 | D113: 2 | E113: Abril | F113: 2012 | G113: Municipalidad Distrital de Ate | H113: 1080.508475 | I113: 194.4915254 | J113: 1275 | K113: Compra | L113: ¿253? | M113: 154 - 156
A114: 1 | B114: 258 | D114: 13 | E114: Abril | F114: 2012 | G114: Municipalidad Distrital de Ate | H114: 5381.355932 | I114: =H114*0.18 -> 968.6440678 | J114: 6350 | K114: Compra | L114: 487 | M114: ¿?
A115: 1 | B115: 259 | C115: Sin uso
A116: 1 | B116: 261 | C116: Anulada
A117: 1 | B117: 262 | D117: 31 | E117: Abril | F117: 2012 | G117: Municipalidad Distrital de Ate | H117: 1899.152542 | I117: 341.8474576 | J117: 2241 | K117: Compra | L117: 604 | M117: ¿160?
A118: 1 | B118: 266 | C118: Sin uso
A119: 1 | B119: 267 | C119: Sin uso
A120: 1 | B120: 268 | D120: 15 | E120: Junio | F120: 2012 | G120: Municipalidad Distrital de Ate | H120: =J120/1.18 -> 2745.762712 | I120: 494.2372881 | J120: 3240 | K120: Compra | L120: 99 | M120: 167
A121: 1 | B121: 269 | D121: 13 | E121: Junio | F121: 2012 | G121: Municipalidad Distrital de Ate | H121: 533.8983051 | I121: 96.10169492 | J121: 630 | K121: Compra | L121: 808 | M121: 166
A122: 1 | B122: 271 | C122: Anulada
A123: 1 | B123: 272 | D123: 26 | E123: Junio | F123: 2012 | G123: Municipalidad Distrital de Santiago de Surco | H123: 7164.40678 | I123: 1289.59322 | J123: 8454 | K123: Compra | L123: ¿940? | M123: 169
A124: 1 | B124: 273 | D124: 26 | E124: Junio | F124: 2012 | G124: Municipalidad Distrital de Santiago de Surco | H124: 8786.440678 | I124: 1581.559322 | J124: 10368 | K124: Compra | L124: ¿939? | M124: 168
A125: 1 | B125: 274 | D125: 26 | E125: Junio | F125: 2012 | G125: Municipalidad Distrital de Ate | H125: 7883.983051 | I125: 1419.116949 | J125: 9303.1 | K125: Compra | L125: 1215 | M125: 170
A126: 1 | B126: 275 | D126: 26 | E126: Junio | F126: 2012 | G126: Municipalidad Distrital de Ate | H126: 2177.330508 | I126: 391.9194915 | J126: 2569.25 | K126: Compra | L126: 1216 | M126: 171 - 172
A127: 1 | B127: 276 | D127: 26 | E127: Junio | F127: 2012 | G127: Municipalidad Distrital de Ate | H127: 6922.118644 | I127: 1245.981356 | J127: 8168.1 | K127: Compra | L127: 1216 | M127: 172 - 174

Sheet Hoja3
